Cogmind - Beta 13 @@@ ROGUE MODE // 2024.08.05 @ 18:28:39 // Winter2019/RPGLIKE Player: badjay Result: Destroyed by L-61 Swordsman with Power Sword Performance ------------- Evolutions (6) 3000 Regions Visited (12) 2400 Robots Destroyed (122) 610 Value Destroyed (4167) 4167 Prototype IDs (24) 480 Alien Tech Used (0) 0 Bonus (779) 779 TOTAL SCORE: 11436 Bonus ------- High Alert Combat Kills 279 Entered DSFs 500 Cogmind --------- Core Integrity 0/700 Matter 290/300 Energy 63/100 System Corruption 0% Temperature Cool (0) Movement Core (50) Location -4/Factory Parts ------- > --- POWER (1) -------- (None) > --- PROPULSION (4) --- (None) > --- UTILITY (9) ------ Advanced Signal Interpreter Advanced Terrain Scanner Improved Melee Analysis Suite Improved Target Analyzer Armor Integrity Analyzer Transmission Jammer Advanced Reaction Control System Graphene Brace Advanced Hacking Suite > --- WEAPON (4) ------- Axe Ripper Spear Spear > --- INVENTORY (1) ---- Improved Reaction Control System Peak State ------------ > --- POWER ------------ F-cell Engine > --- PROPULSION ------- Field Propulsion Drive Field Propulsion Drive Field Propulsion Drive > --- UTILITY ---------- Advanced Signal Interpreter Advanced Terrain Scanner Improved Melee Analysis Suite Advanced Melee Analysis Suite Improved Target Analyzer Armor Integrity Analyzer Transmission Jammer Force Field Advanced Hacking Suite > --- WEAPON ----------- Axe Ripper Spear Spear > --- INVENTORY -------- (None) [Rating: 82] Favorites ----------- Power F-cell Engine Engine F-cell Engine Power Core Light Nuclear Core Reactor Light Antimatter Reactor Propulsion Cooled Airjet Hover Unit Cooled Airjet Flight Unit Flight Unit Utility Transmission Jammer Device Transmission Jammer Processor Advanced Signal Interpreter Hackware Advanced Hacking Suite Weapon Ripper Launcher Grenade Launcher Impact Weapon Flail Slashing Weapon Ripper Piercing Weapon Spear Build | -11 -10 -10 -10 -9 -8 -7 -6 -6 -6 -5 -5 -4 ------- Run | Yrd Mat Min Exi Min Mat Fac Fac Low Low Fac DSF Fac Slots Evolved 14 | . 1 . . . 4 2 4 1 . 1 . 1 Power . | . . . . . . . . . . . . . Propulsion 3 | . 1 . . . . 1 . . . . . 1 Utility 8 | . . . . . 1 1 4 1 . 1 . . Weapon 3 | . . . . . 3 . . . . . . . Parts Attached 72 | . 5 4 . 3 11 13 23 3 . 6 . 4 Power 11 | . 2 . . 1 1 2 3 1 . . . 1 Engine 7 | . 1 . . 1 1 1 2 1 . . . . Core 3 | . 1 . . . . 1 1 . . . . . Reactor 1 | . . . . . . . . . . . . 1 Propulsion 23 | . 2 . . 2 3 6 7 . . 3 . . Treads . | . . . . . . . . . . . . . Leg . | . . . . . . . . . . . . . Wheel . | . . . . . . . . . . . . . Hover 4 | . . . . . . . 4 . . . . . Flight 19 | . 2 . . 2 3 6 3 . . 3 . . Utility 21 | . 1 2 . . 2 2 7 1 . 3 . 3 Device 11 | . 1 2 . . . 1 2 1 . 1 . 3 Storage . | . . . . . . . . . . . . . Processor 9 | . . . . . 2 1 5 . . 1 . . Hackware 1 | . . . . . . . . . . 1 . . Protection . | . . . . . . . . . . . . . Artifact . | . . . . . . . . . . . . . Weapon 17 | . . 2 . . 5 3 6 1 . . . . Energy Gun . | . . . . . . . . . . . . . Energy Cannon . | . . . . . . . . . . . . . Ballistic Gun . | . . . . . . . . . . . . . Ballistic Cannon . | . . . . . . . . . . . . . Launcher 1 | . . 1 . . . . . . . . . . Special Weapon . | . . . . . . . . . . . . . Impact Weapon 5 | . . . . . 4 1 . . . . . . Slashing Weapon 7 | . . 1 . . 1 2 2 1 . . . . Piercing Weapon 4 | . . . . . . . 4 . . . . . Special Melee Weapon . | . . . . . . . . . . . . . Unidentified Prototypes 3 | . . 1 . . . . 2 . . . . . Parts Lost 1 | . . . . . . . . . . 1 . . Power . | . . . . . . . . . . . . . Propulsion . | . . . . . . . . . . . . . Utility 1 | . . . . . . . . . . 1 . . Weapon . | . . . . . . . . . . . . . Highest Loss Streak 1 | . . . . . . . . . . 1 . . To Critical Strikes . | . . . . . . . . . . . . . Average Slot Usage (%) 91 | . 53 80 80 97 94 91 99 96 93 97 83 70 Engine 7 | . 5 . . 17 14 7 6 5 6 5 2 . Core 1 | . 9 16 . . . 1 . . . . . . Hover 7 | . . . . . . . 14 19 18 1 . . Flight 15 | . 29 40 40 40 28 25 6 . . 16 9 . Device 14 | . 9 20 20 20 . 5 19 19 18 17 13 20 Processor 18 | . . . . . 15 18 21 25 25 29 27 22 Impact Weapon 4 | . . . . . 5 9 6 3 . . . . Slashing Weapon 15 | . . 3 20 20 28 23 13 8 12 11 11 11 Piercing Weapon 5 | . . . . . . . 7 12 12 11 11 11 Naked Turns 74 | . 74 . . . . . . . . . . . Heaviest Build 31 | . 6 6 4 7 12 22 27 26 26 31 31 16 Greatest Support 46 | 3 8 8 8 8 13 22 46 46 46 34 36 18 Greatest Overweight (x) 1 | . . . . . . 1 1 . . 1 . . Average Overweight (x) . | . . . . . . . . . . . . . Largest Inventory Capacity 1 | . . . . . 1 1 1 1 1 1 1 1 Average Capacity . | . . . . . . 1 1 1 1 1 1 1 Most Carried 1 | . . . . . 1 1 1 1 . . . 1 Average Carried . | . . . . . . . . . . . . . Final Capacity 1 | . . . . . 1 1 1 1 1 1 1 1 Final Carried 1 | . . . . . 1 1 1 . . . . 1 Class Distribution -------------------- 50% | Hacker-Ninja 18% | Hacker-Sprinter 16% | Hacker-Gladiator 13% | Hacker-Mutant Dominant Class ---------------- Hacker-Mutant | -10/Materials Hacker-Mutant | -10/Mines Hacker-Mutant | -10/Exiles Hacker-Mutant | -9/Mines Hacker-Gladiator | -8/Materials Hacker-Sprinter | -7/Factory Hacker-Ninja | -6/Factory Hacker-Ninja | -6/Lower Caves Hacker-Ninja | -6/Lower Caves Hacker-Ninja | -5/Factory Hacker-Ninja | -5/DSF Hacker-Ninja | -4/Factory Resources | -11 -10 -10 -10 -9 -8 -7 -6 -6 -6 -5 -5 -4 ----------- Run | Yrd Mat Min Exi Min Mat Fac Fac Low Low Fac DSF Fac Matter Collected 910 | 195 55 . . 70 110 130 230 30 . 40 . 50 Remotely . | . . . . . . . . . . . . . Salvage Created 4865 | . . . . 40 1123 851 2051 609 . 75 . 116 Parts 276 | . . . . 13 63 44 120 24 . 8 . 4 Haulers Intercepted 13 | . . . . . 6 2 5 . . . . . Recyclers Shooed . | . . . . . . . . . . . . . Parts Field Recycled . | . . . . . . . . . . . . . Retrieved Matter . | . . . . . . . . . . . . . Parts Self-Destructed 24 | . . . . . . . . 24 . . . . Prevented . | . . . . . . . . . . . . . Kills | -11 -10 -10 -10 -9 -8 -7 -6 -6 -6 -5 -5 -4 ------- Run | Yrd Mat Min Exi Min Mat Fac Fac Low Low Fac DSF Fac Combat Hostiles Destroyed 91 | . . . . 5 21 16 35 10 . 3 . 1 Melee 90 | . . . . 5 21 16 34 10 . 3 . 1 Classes Destroyed 11 | . . . . 3 5 1 2 . . . . . Worker 3 | . . . . . . . 3 . . . . . Builder 3 | . . . . 1 . . 2 . . . . . Hauler 13 | . . . . . 6 2 5 . . . . . Watcher 12 | . . . . . 2 3 7 . . . . . Swarmer 29 | . . . . 4 4 4 12 5 . . . . Grunt 25 | . . . . . 5 6 12 . . 2 . . Brawler 3 | . . . . . 2 . . . . 1 . . Duelist 5 | . . . . . 1 1 1 2 . . . . Sentry 25 | . . . . 1 9 4 8 2 . . . 1 Hunter 1 | . . . . . . 1 . . . . . . Programmer 3 | . . . . . . . 2 1 . . . . Best Kill Streak 6 | . . . . 4 5 6 5 3 . 3 . 1 Combat Bots Only 5 | . . . . 4 5 5 4 3 . 3 . 1 Max Kills in Single Turn 1 | . . . . 1 1 1 1 1 . 1 . 1 Gunslinging . | . . . . . . . . . . . . . Exploded . | . . . . . . . . . . . . . Melee 1 | . . . . 1 1 1 1 1 . 1 . 1 Uniques/NPCs Destroyed . | . . . . . . . . . . . . . Combat | -11 -10 -10 -10 -9 -8 -7 -6 -6 -6 -5 -5 -4 -------- Run | Yrd Mat Min Exi Min Mat Fac Fac Low Low Fac DSF Fac Hostile Shots Fired 607 | . 16 . . 17 92 99 301 25 9 11 27 10 Missed 284 | . 6 . . 3 34 56 147 11 5 6 14 2 Damage Taken 4855 | . 83 21 . 144 892 518 1917 423 81 109 403 264 Core 4071 | . 79 21 . 128 744 452 1558 353 63 90 343 240 Absorbed by Shields 81 | . . . . . . . . . . . 81 . Redirected to Core 2656 | . 12 . . 45 515 216 1170 253 63 71 223 88 Core Remaining (%) 77 | 100 . . . 97 100 91 . . 43 . 34 . Volleys Fired . | . . . . . . . . . . . . . Largest . | . . . . . . . . . . . . . Hottest . | . . . . . . . . . . . . . Shots Fired . | . . . . . . . . . . . . . Gun . | . . . . . . . . . . . . . Cannon . | . . . . . . . . . . . . . Launcher . | . . . . . . . . . . . . . Special . | . . . . . . . . . . . . . Kinetic . | . . . . . . . . . . . . . Thermal . | . . . . . . . . . . . . . Explosive . | . . . . . . . . . . . . . Electromagnetic . | . . . . . . . . . . . . . Robot Hit Streak . | . . . . . . . . . . . . . Robot Miss Streak . | . . . . . . . . . . . . . Penetration Max . | . . . . . . . . . . . . . Secondary Targets . | . . . . . . . . . . . . . Shots Hit Robots 304 | . . . . 10 69 47 128 24 1 13 2 10 Core Hits 130 | . . . . 4 29 23 53 11 . 6 . 4 Critical Kills . | . . . . . . . . . . . . . Critical Parts Destroyed 4 | . . . . . . 2 2 . . . . . Critical Strikes 41 | . . . . 1 8 8 17 4 . 2 . 1 Smash 4 | . . . . . . 2 2 . . . . . Sever 21 | . . . . 1 8 6 5 . . 1 . . Impale 16 | . . . . . . . 10 4 . 1 . 1 Melee Attacks 390 | . . . . 12 94 58 158 33 1 19 2 13 Impact 37 | . . . . . 6 8 19 4 . . . . Slashing 218 | . . . . 12 88 50 59 2 . 5 . 2 Piercing 135 | . . . . . . . 80 27 1 14 2 11 Sneak Attacks 36 | . . . . 2 7 5 19 2 1 . . . Combat Hostiles 8 | . . . . 1 1 . 3 2 1 . . . Follow-up Attacks 62 | . . . . . 5 14 34 4 . 3 . 2 Damage Inflicted 13118 | . . . . 446 2756 1962 6112 931 61 476 67 307 Guns . | . . . . . . . . . . . . . Cannons . | . . . . . . . . . . . . . Explosions . | . . . . . . . . . . . . . Melee 13118 | . . . . 446 2756 1962 6112 931 61 476 67 307 Ramming . | . . . . . . . . . . . . . Kinetic . | . . . . . . . . . . . . . Thermal . | . . . . . . . . . . . . . Explosive . | . . . . . . . . . . . . . Electromagnetic . | . . . . . . . . . . . . . Impact 700 | . . . . . 67 186 418 29 . . . . Slashing 7517 | . . . . 446 2689 1776 2422 44 . 113 . 27 Piercing 4901 | . . . . . . . 3272 858 61 363 67 280 Highest Corruption . | . . . . . . . . . . . . . Average Corruption . | . . . . . . . . . . . . . Corruption Purged . | . . . . . . . . . . . . . Corruption Blocked . | . . . . . . . . . . . . . Overload Shots . | . . . . . . . . . . . . . Overflow Damage 1206 | . . . . 88 109 89 771 148 1 . . . Projectiles . | . . . . . . . . . . . . . Explosions . | . . . . . . . . . . . . . Melee 1206 | . . . . 88 109 89 771 148 1 . . . Knockbacks 1 | . . . . . . 1 . . . . . . Impact 1 | . . . . . . 1 . . . . . . Kinetic . | . . . . . . . . . . . . . Secondary . | . . . . . . . . . . . . . Self-Inflicted Damage . | . . . . . . . . . . . . . Shots . | . . . . . . . . . . . . . Rammed . | . . . . . . . . . . . . . Targets Rammed . | . . . . . . . . . . . . . Kicked . | . . . . . . . . . . . . . Crushed . | . . . . . . . . . . . . . Highest Temperature 18 | . . . . . 15 17 9 . 3 18 . . Average Temperature 7 | . . . . . 12 7 4 . 3 8 . . Received Heat Transfer 1035 | . 6 . . 9 297 141 450 18 42 54 . 18 Siege Activations . | . . . . . . . . . . . . . Robots Corrupted . | . . . . . . . . . . . . . Combat Hostiles . | . . . . . . . . . . . . . Parts Fried 4 | . . . . . . . 4 . . . . . Impact Corruptions 12 | . . . . . . 2 10 . . . . . Robots Melted . | . . . . . . . . . . . . . Combat Hostiles . | . . . . . . . . . . . . . Parts Melted 1 | . . . . . . . 1 . . . . . Heat Transferred . | . . . . . . . . . . . . . Parts Sabotaged . | . . . . . . . . . . . . . Parts Stolen . | . . . . . . . . . . . . . Parts Stripped . | . . . . . . . . . . . . . Power Chain Reactions . | . . . . . . . . . . . . . Alert | -11 -10 -10 -10 -9 -8 -7 -6 -6 -6 -5 -5 -4 ------- Run | Yrd Mat Min Exi Min Mat Fac Fac Low Low Fac DSF Fac Peak Influence 741 | . 118 60 . 132 610 502 741 . . 396 277 295 Initial 277 | . . 45 . . 51 109 245 . . 264 277 153 Average 293 | . 54 59 . 104 284 312 383 . . 305 277 217 Maximum Alert Level 3 | . . . . . 2 2 3 . . 1 1 1 Low Security (%) 36 | 100 100 100 . 100 25 26 24 . . . . 48 Level 1 38 | . . . . . 57 41 33 . . 100 100 51 Level 2 20 | . . . . . 17 31 31 . . . . . Level 3 4 | . . . . . . . 11 . . . . . Level 4 . | . . . . . . . . . . . . . Level 5 . | . . . . . . . . . . . . . High Security . | . . . . . . . . . . . . . Max Security . | . . . . . . . . . . . . . Squads Dispatched 11 | . 1 . . . 1 1 7 . . . 1 . Investigation 4 | . 1 . . . . 1 2 . . . . . Extermination 2 | . . . . . . . 2 . . . . . Reinforcement 5 | . . . . . 1 . 3 . . . 1 . Assault . | . . . . . . . . . . . . . Garrison . | . . . . . . . . . . . . . Intercept . | . . . . . . . . . . . . . Searches Triggered . | . . . . . . . . . . . . . Construction Impeded . | . . . . . . . . . . . . . Haulers Reinforced 1 | . . . . . . . 1 . . . . . Active Scanning Responses . | . . . . . . . . . . . . . Cargo Convoy Interrupts 1 | . . . . . . 1 . . . . . . Stealth | -11 -10 -10 -10 -9 -8 -7 -6 -6 -6 -5 -5 -4 --------- Run | Yrd Mat Min Exi Min Mat Fac Fac Low Low Fac DSF Fac Distress Signals . | . . . . . . . . . . . . . Communications Jammed 41 | . . . . . . 5 11 . . 25 . . Distress Signals 41 | . . . . . . 5 11 . . 25 . . Times Spotted 172 | . 8 3 . 10 28 34 56 12 8 4 4 5 Peak Tracking Total 12 | . 3 3 . 5 4 12 5 4 8 4 4 5 Tactical Retreats 17 | . 1 1 . 3 1 1 7 1 . . 1 1 Traps | -11 -10 -10 -10 -9 -8 -7 -6 -6 -6 -5 -5 -4 ------- Run | Yrd Mat Min Exi Min Mat Fac Fac Low Low Fac DSF Fac Traps Triggered 7 | . 1 . . . . 2 2 . . . . 2 Indirectly . | . . . . . . . . . . . . . Trap Hack Attempts . | . . . . . . . . . . . . . Triggered . | . . . . . . . . . . . . . Disarmed . | . . . . . . . . . . . . . Reprogrammed . | . . . . . . . . . . . . . Reused . | . . . . . . . . . . . . . Traps Extracted . | . . . . . . . . . . . . . Installed . | . . . . . . . . . . . . . Triggered 1 | . . . . . . . . 1 . . . . Machines | -11 -10 -10 -10 -9 -8 -7 -6 -6 -6 -5 -5 -4 ---------- Run | Yrd Mat Min Exi Min Mat Fac Fac Low Low Fac DSF Fac Machines Disabled . | . . . . . . . . . . . . . Max in Single Turn . | . . . . . . . . . . . . . Garrison Access 4 | . . . . . 1 1 2 . . . . . Machines Repaired . | . . . . . . . . . . . . . Machines Dismantled . | . . . . . . . . . . . . . Machines Sabotaged . | . . . . . . . . . . . . . Overloaded Fab Kills . | . . . . . . . . . . . . . Hacking | -11 -10 -10 -10 -9 -8 -7 -6 -6 -6 -5 -5 -4 --------- Run | Yrd Mat Min Exi Min Mat Fac Fac Low Low Fac DSF Fac Machines Accessed 53 | . 8 1 1 1 12 6 18 . . 5 . 1 Terminals 44 | . 8 . . . 11 5 14 . . 5 . 1 Fabricators . | . . . . . . . . . . . . . Repair Stations . | . . . . . . . . . . . . . Recycling Units 2 | . . . . . . . 2 . . . . . Scanalyzers . | . . . . . . . . . . . . . Garrison Access 4 | . . . . . 1 1 2 . . . . . Total Hacks 258 | . 43 1 4 1 55 29 98 . . 22 . 5 Successful 149 | . 26 1 4 1 36 19 48 . . 11 . 3 Failed 108 | . 17 . . . 19 10 49 . . 11 . 2 Catastrophic 10 | . . . . . . . 7 . . 3 . . Database Lockouts 1 | . . . . . . . 1 . . . . . Manual 132 | . 23 . . . 30 21 48 . . 8 . 2 Terminals 232 | . 43 . . . 53 26 83 . . 22 . 5 Fabricators . | . . . . . . . . . . . . . Repair Stations . | . . . . . . . . . . . . . Recycling Units 9 | . . . . . . . 9 . . . . . Scanalyzers . | . . . . . . . . . . . . . Garrison Access 11 | . . . . . 2 3 6 . . . . . Terminal Hacks 97 | . 21 1 4 1 24 11 26 . . 7 . 2 Record 5 | . . . 4 . . 1 . . . . . . Part Schematic 5 | . 2 . . . . . 2 . . 1 . . Robot Schematic 1 | . . . . . . . 1 . . . . . Robot Analysis 9 | . 2 . . . 3 . 3 . . . . 1 Prototype ID Bank 16 | . 8 . . . 5 1 2 . . . . . Open Door 2 | . . 1 . 1 . . . . . . . . Open DSF 2 | . . . . . . 1 . . . 1 . . Level Access Points 4 | . . . . . 2 . 1 . . 1 . . Branch Access Points 4 | . 1 . . . 2 1 . . . . . . Emergency Access Points 2 | . 1 . . . . . 1 . . . . . Terminal Index 5 | . 1 . . . 1 1 1 . . 1 . . Fabricator Index 2 | . . . . . . 1 1 . . . . . Recycling Unit Index 1 | . . . . . . . 1 . . . . . Garrison Index 2 | . . . . . . 1 . . . 1 . . Alert Level 13 | . 2 . . . 5 1 4 . . 1 . . Unreport Threat 7 | . . . . . 3 . 4 . . . . . Locate Traps 1 | . . . . . . . 1 . . . . . Surveillance Status 1 | . . . . . . . 1 . . . . . Recall Investigation 1 | . 1 . . . . . . . . . . . Hauler Manifests 4 | . 1 . . . 1 1 . . . . . 1 Registered Components 6 | . 1 . . . 1 1 2 . . 1 . . Registered Prototypes 4 | . 1 . . . 1 1 1 . . . . . Fabricator Hacks . | . . . . . . . . . . . . . Repair Station Hacks . | . . . . . . . . . . . . . Recycling Unit Hacks 2 | . . . . . . . 2 . . . . . Process 2 | . . . . . . . 2 . . . . . Scanalyzer . | . . . . . . . . . . . . . Garrison Access Hacks 4 | . . . . . 1 1 2 . . . . . Seal Access 4 | . . . . . 1 1 2 . . . . . Unauthorized Hacks 46 | . 5 . . . 11 7 18 . . 4 . 1 Terminals 37 | . 5 . . . 10 6 11 . . 4 . 1 Track 5 | . 1 . . . 2 . 2 . . . . . Assimilate 5 | . . . . . 1 2 2 . . . . . Botnet 18 | . 3 . . . 4 3 4 . . 3 . 1 Disrupt 4 | . . . . . 2 . 2 . . . . . Operators 5 | . 1 . . . 1 1 1 . . 1 . . Fabricators . | . . . . . . . . . . . . . Repair Stations . | . . . . . . . . . . . . . Recycling Units 4 | . . . . . . . 4 . . . . . Monitor 2 | . . . . . . . 2 . . . . . Mask 2 | . . . . . . . 2 . . . . . Scanalyzers . | . . . . . . . . . . . . . Garrison Access 5 | . . . . . 1 1 3 . . . . . Broadcast 4 | . . . . . 1 1 2 . . . . . Watchers 1 | . . . . . . . 1 . . . . . Data Cores Recovered . | . . . . . . . . . . . . . Used . | . . . . . . . . . . . . . Hacking Detections 45 | . 8 . . . 11 5 16 . . 4 . 1 Full Trace Events 2 | . . . . . . . 2 . . . . . Feedback Events . | . . . . . . . . . . . . . Feedback Blocked . | . . . . . . . . . . . . . Robot Schematics Acquired 1 | . . . . . . . 1 . . . . . Robots Built . | . . . . . . . . . . . . . Authchips . | . . . . . . . . . . . . . Time . | . . . . . . . . . . . . . Total Robot Build Rating . | . . . . . . . . . . . . . Part Schematics Acquired 5 | . 2 . . . . . 2 . . 1 . . Parts Built . | . . . . . . . . . . . . . Authchips . | . . . . . . . . . . . . . Time . | . . . . . . . . . . . . . Total Part Build Rating . | . . . . . . . . . . . . . Parts Repaired . | . . . . . . . . . . . . . Time . | . . . . . . . . . . . . . Parts Recycled . | . . . . . . . . . . . . . Recycled Matter 79 | . . . . . . . 79 . . . . . Retrieved Matter . | . . . . . . . . . . . . . Retrieved Components . | . . . . . . . . . . . . . Parts Scanalyzed . | . . . . . . . . . . . . . Part Schematics Acquired . | . . . . . . . . . . . . . Parts Damaged . | . . . . . . . . . . . . . Bothacking | -11 -10 -10 -10 -9 -8 -7 -6 -6 -6 -5 -5 -4 ------------ Run | Yrd Mat Min Exi Min Mat Fac Fac Low Low Fac DSF Fac Used RIF Installer . | . . . . . . . . . . . . . Robots Hacked . | . . . . . . . . . . . . . Non-combat . | . . . . . . . . . . . . . Combat . | . . . . . . . . . . . . . Robot Hacks Applied . | . . . . . . . . . . . . . Relay Couplers Released . | . . . . . . . . . . . . . Fabnet Peak Effective % . | . . . . . . . . . . . . . Robots Rewired . | . . . . . . . . . . . . . Allies Hacked . | . . . . . . . . . . . . . Hacks Repelled . | . . . . . . . . . . . . . Allies | -11 -10 -10 -10 -9 -8 -7 -6 -6 -6 -5 -5 -4 -------- Run | Yrd Mat Min Exi Min Mat Fac Fac Low Low Fac DSF Fac Total Allies 4 | . . . . . 1 1 2 . . . . . Largest Group 1 | . . . . . 1 1 1 1 . . . . Highest-Rated Group 26 | . . . . . 10 26 26 10 . . . . Highest-Rated Ally 26 | . . . . . 10 26 26 10 . . . . Total Orders . | . . . . . . . . . . . . . Ally Attacks . | . . . . . . . . . . . . . Total Damage . | . . . . . . . . . . . . . Kills . | . . . . . . . . . . . . . Allies Corrupted . | . . . . . . . . . . . . . Allies Melted . | . . . . . . . . . . . . . Intel | -11 -10 -10 -10 -9 -8 -7 -6 -6 -6 -5 -5 -4 ------- Run | Yrd Mat Min Exi Min Mat Fac Fac Low Low Fac DSF Fac Robot Analysis Total 9 | . 2 . . . 3 . 3 . . . . 1 Derelict Logs Recovered 5 | . . 1 . 3 . . . . 1 . . . Drone Launches 3 | . . 3 . . . . . . . . . . Drone Recoveries . | . . . . . . . . . . . . . Exploration | -11 -10 -10 -10 -9 -8 -7 -6 -6 -6 -5 -5 -4 ------------- Run | Yrd Mat Min Exi Min Mat Fac Fac Low Low Fac DSF Fac Turns Passed 5195 | 12 292 177 98 203 662 689 1868 543 60 241 44 306 Spaces Moved 7990 | 23 624 265 249 421 954 1406 2489 673 139 337 75 335 Core 536 | 23 142 . . . 1 . . . . . 35 335 Treads . | . . . . . . . . . . . . . Legs . | . . . . . . . . . . . . . Wheels . | . . . . . . . . . . . . . Hover 2499 | . . . . . . . 1669 673 139 18 . . Flight 4955 | . 482 265 249 421 953 1406 820 . . 319 40 . Fastest Speed 30 | 50 37 37 37 37 37 30 30 30 30 39 39 50 Average Speed 38 | 50 40 37 37 37 37 32 38 41 40 39 44 50 Slowest Speed 125 | 50 50 37 37 37 50 114 114 46 42 125 50 50 Overloaded Moves 33 | . . . . . . . 9 7 17 . . . Propulsion Burnouts . | . . . . . . . . . . . . . Robots Hopped 24 | . 6 1 . 3 7 6 1 . . . . . Cave-ins Triggered . | . . . . . . . . . . . . . Exploration Rate (%) 48 | 3 83 72 60 70 75 30 65 77 15 12 61 6 Regions Visited 12 Branch Regions 5 Pre-discovered Areas 2 | . . . 1 1 . . . . . . . . Known Exits Taken 6 | . 1 . . . 1 . 1 1 1 1 . . Unknown Exits Taken 5 | 1 . 1 1 1 . 1 . . . . . . Scrap Searched 4 | . . 1 . 1 . . . 1 1 . . . Spaces Dug 27 | . . . . 2 11 1 7 2 . 2 . 2 Terrain Destroyed 27 | . . . . 2 11 1 7 2 . 2 . 2 Melee 27 | . . . . 2 11 1 7 2 . 2 . 2 Projectile . | . . . . . . . . . . . . . AOE . | . . . . . . . . . . . . . Terrain Rammed . | . . . . . . . . . . . . . Walls Destroyed . | . . . . . . . . . . . . . Machines Disabled . | . . . . . . . . . . . . . Actions | -11 -10 -10 -10 -9 -8 -7 -6 -6 -6 -5 -5 -4 --------- Run | Yrd Mat Min Exi Min Mat Fac Fac Low Low Fac DSF Fac Total 9610 | 22 657 342 254 447 1137 1569 3194 891 139 419 82 457 Wait 1042 | . 32 68 6 5 54 89 495 166 . 44 6 77 Move 7933 | 22 611 262 248 414 942 1393 2486 672 138 336 74 335 Hop 21 | . 6 1 . 3 4 6 1 . . . . . Pick Up 8 | . . . . . 2 1 3 2 . . . . Fast Attach 57 | . 4 4 . 1 9 8 19 3 . 6 . 3 Attach 1 | . . . . . . . 1 . . . . . Detach . | . . . . . . . . . . . . . Swap 14 | . 1 . . 2 2 5 3 . . . . 1 Drop 47 | . 1 4 . 2 6 8 19 3 . 3 . 1 Fire . | . . . . . . . . . . . . . Melee 275 | . . . . 12 75 36 103 23 1 13 2 10 Ram . | . . . . . . . . . . . . . Kick . | . . . . . . . . . . . . . Crush . | . . . . . . . . . . . . . Escape Stasis 30 | . . . . . . . . . . . . 30 Rewire . | . . . . . . . . . . . . . Trap . | . . . . . . . . . . . . . Miscellaneous 182 | . 2 3 . 8 43 23 64 22 . 17 . . Route ------- -11/Scrapyard -10/Materials (discovered 5 exits: [*Mat x3] / *Min x2) -10/Mines (discovered 3 exits: [*Mat] / *Exi / [Sub]) -10/Exiles -9/Mines (discovered 2 exits: *Mat x2) -8/Materials (discovered 3 exits: *Fac x3) -7/Factory (discovered 3 exits: *Fac / Low x2) -6/Factory (discovered 6 exits: *Fac x4 / *Low x2) -6/Lower Caves -6/Lower Caves -5/Factory (discovered 5 exits: Fac x4 / DSF) -5/DSF -4/Factory History --------- Turn | Location | Event 3 | -11/Scrapyard | Discovered new exit (range 16) 13 | -11/Scrapyard | Entered Materials 22 | -10/Materials | Discovered new exit (range 16) 46 | -10/Materials | Discovered new exit (range 8) 77 | -10/Materials | Met 8R-AWN 108 | -10/Materials | Upgraded with Propulsion slot (x1) 185 | -10/Materials | Discovered new exit (range 9) 207 | -10/Materials | Identified exit to Mines 226 | -10/Materials | Discovered new exit (range 10) 287 | -10/Materials | Discovered new exit (range 7) 305 | -10/Materials | Entered Mines 306 | -10/Mines | Followed 8R-AWN into the Mines 333 | -10/Mines | Discovered new exit (range 8) 358 | -10/Mines | Found the Drone Emporium 359 | -10/Mines | Found Prototype Device 359 | -10/Mines | Identified Sensor Drone Bay 378 | -10/Mines | YI-UF0 nonchalantly dropped a Grenade Launcher on the ground 406 | -10/Mines | Learned 8 Materials zone layouts 407 | -10/Mines | Build established: Hacker-Mutant 431 | -10/Mines | Discovered new exit (range 12) 451 | -10/Mines | A weapon hastily lodged in a ceiling crevice suddenly fell to the ground 463 | -10/Mines | Discovered new exit (range 5) 482 | -10/Mines | Entered Exiles 496 | -10/Exiles | Welcomed by 8R-AWN 504 | -10/Exiles | Met EX-HEX 516 | -10/Exiles | Met EX-BIN 551 | -10/Exiles | Met EX-DEC 553 | -10/Exiles | Learned location of Zion (-7) 575 | -10/Exiles | Discovered new exit (range 15) 580 | -10/Exiles | Entered Mines 582 | -9/Mines | Reached level 2 605 | -9/Mines | Discovered new exit (range 12) 625 | -9/Mines | Discovered new exit (range 13) 627 | -9/Mines | Learned 4 Materials zone layouts 634 | -9/Mines | Met a Derelict who couldn't figure out how to use a Trap Extractor 640 | -9/Mines | Assembled infested the area 663 | -9/Mines | Learned Materials garrison access intel 708 | -9/Mines | Joined a pair of Derelicts in attacking an 0b10 outpost 783 | -9/Mines | Entered Materials 784 | -8/Materials | Identified exit to Factory 785 | -8/Materials | Loaded intel: 1 garrison access location 785 | -8/Materials | Reached level 3 811 | -8/Materials | Upgraded with Weapon slot (x1) 987 | -8/Materials | Reached level 4 1101 | -8/Materials | Build established: Hacker-Gladiator 1152 | -8/Materials | Upgraded with Weapon slot (x1) 1228 | -8/Materials | Reached level 5 1230 | -8/Materials | Upgraded with Utility slot (x1) 1230 | -8/Materials | Upgraded with Weapon slot (x1) 1445 | -8/Materials | Entered Factory 1447 | -7/Factory | Reached level 6 1447 | -7/Factory | Upgraded with Propulsion slot (x1) 1460 | -7/Factory | Identified exit to Lower Caves 1671 | -7/Factory | Reached level 7 1682 | -7/Factory | Upgraded with Utility slot (x1) 1939 | -7/Factory | Build established: Hacker-Sprinter 2125 | -7/Factory | Cargo convoy interrupted 2133 | -7/Factory | Discovered new exit (range 4) 2134 | -7/Factory | Entered another Factory area 2136 | -6/Factory | Reached level 8 2136 | -6/Factory | Upgraded with Utility slot (x1) 2176 | -6/Factory | Reached level 9 2179 | -6/Factory | Upgraded with Utility slot (x1) 2324 | -6/Factory | Discovered new exit (range 15) 2330 | -6/Factory | Central database locked down 2418 | -6/Factory | Identified exit to Lower Caves 2528 | -6/Factory | Discovered new exit (range 9) 2530 | -6/Factory | Identified exit to Factory 2550 | -6/Factory | Reached level 10 2553 | -6/Factory | Upgraded with Utility slot (x1) 2904 | -6/Factory | Build established: Hacker-Ninja 3070 | -6/Factory | Discovered exit to Lower Caves (range 5) 3172 | -6/Factory | Reached level 11 3244 | -6/Factory | Core integrity fell below 50% 3401 | -6/Factory | Core integrity fell below 20% 3681 | -6/Factory | Reached level 12 3692 | -6/Factory | Upgraded with Utility slot (x1) 4002 | -6/Factory | Entered Lower Caves 4002 | -6/Lower Caves | Accompanied by 1 ally 4340 | -6/Lower Caves | Reached level 13 4343 | -6/Lower Caves | Upgraded with Utility slot (x1) 4347 | -6/Lower Caves | Attracted the attention of an 0b10 outpost 4478 | -6/Lower Caves | Discovered new exit (range 15) 4544 | -6/Lower Caves | Identified exit to Lower Caves 4545 | -6/Lower Caves | Entered another Lower Caves area 4605 | -6/Lower Caves | Entered Factory 4606 | -5/Factory | Core integrity fell below 50% 4607 | -5/Factory | Reached level 14 4738 | -5/Factory | Reached level 15 4783 | -5/Factory | Upgraded with Utility slot (x1) 4803 | -5/Factory | Identified exit to Factory 4845 | -5/Factory | Identified exit to DSF 4846 | -5/Factory | Entered DSF 4848 | -5/DSF | Reached level 16 4866 | -5/DSF | Additional patrols routed to DSF 4882 | -5/DSF | Discovered exit to Factory (range 17) 4890 | -5/DSF | Entered Factory 4891 | -4/Factory | Core integrity fell below 50% 4892 | -4/Factory | Reached level 17 4898 | -4/Factory | Upgraded with Propulsion slot (x1) 5187 | -4/Factory | Core integrity fell below 20% 5196 | -4/Factory | Destroyed by L-61 Swordsman with Power Sword Last Messages --------------- 05072_ Field strength at 82. 05073_ Field strength at 76. 05074_ Field strength at 70. 05075_ Field strength at 64. 05076_ Field strength at 58. 05077_ Field strength at 52. 05078_ Field strength at 46. 05079_ Field strength at 40. 05080_ Field strength at 34. 05081_ Field strength at 28. 05082_ Field strength at 22. 05083_ Field strength at 16. 05084_ Field strength at 10. 05085_ Field strength at 4. 05086_ Stasis field depleted. 05141_ Spear follow-up attack on W-44 Eye. 05158_ K-01 Serf collects debris. 05171_ ALERT: Security rotation in progress. 05171_ K-01 Serf collects debris. 05196_ Axe follow-up attack on L-61 Swordsman. Map ----- +----------------------------------------------------+ | ##########?????# ##################???????????? | | ?????????????????# ###?# * #???????????? | | ?????????????????# ###?# #???????????? | | ?????????????#### ##### #???????????? | | ################ #####[ #???????????? | | # """ """ ##??????????? | | # """ """ ##??????????? | | + """ """ #?##????????? | | # ##??????????? | | # """ """ ###?#???????? | | #################### # """ """ ???##?#??????? | | ???????????#?#?#?######/# """ """ ####?#??????? | | ???????###??###### # ?##??###?????? | | ????????##########[[[ ###############??###?????? | | ??????##?#?#?#?##[[[ ##?###???############????? | | ###############[[[ #?########?#??#?#?##?????? | | # ##??######?#?##??####????? | | # ##????######??##?#?##????? | | #w""" ############??##?#?##????? | | + """ ##############?###?##????? | | # """ # ##????###???? | | #/########## # !# ########????? | | ### ######## ####?#?#????? | | ### """"" # #?##?###????? | | " """ ### ""T"" # k #?#?####????? | | " """ + #@ #####?#?????? | | " """ ### !! """ gl #?#?####????? | | !#?# !! """ # ###?###?????? | | """ #?# !! """ # ####?##?????? | | """ ### # ######??????? | | """ + # k ######??????? | | #######+## # ##?#????????? | | #?# # ##################???????? | | ### # #############??##????????? | | ##########?# """# #??###?#####?#???????????? | | ???????????# """# #?##??########???????????? | | ???????????# """# ##########?###???????????? | | ???????????# # ##??????????????? | | ???????????# """# #???????????????? | | ???????????# ! """# #???????????????? | | ???????????# """# #???????????????? | | ???????????# # #???????????????? | | ???????????###########+###########???????????????? | | ?????????????????# #?????????????????????? | | ?????????????????# #?????????????????????? | | ?????????????????# #?????????????????????? | | ?????????????????# #?????????????????????? | | ?????????????????# #?????????????????????? | | ?????????????????# """ """ #?????????????????????? | | ?????????????????# """ """ #?????????????????????? | +----------------------------------------------------+ Best States ------------- Heat Dissipation 25 Energy Generation 19 Energy Capacity 500 Matter Stores 300 Matter Capacity 300 Sight Range 23 Robot Scan Range 10 Terrain Scan Range 20 Terrain Scan Density 310 Jamming Range 12 Evasion (%) 74 Melee Accuracy 14 Target Analysis 6 Armor Integrity Analysis 30 Offensive Hacking 29 Defensive Hacking 15 Item Schematics ----------------- Hammer | -10/Materials | Hacked Mining Claw | -10/Materials | Hacked Spear | -6/Factory | Hacked Fission Core | -6/Factory | Hacked Molecular Scythe | -5/Factory | Hacked Robot Schematics ------------------ H-66 Slayer | -6/Factory | Hacked Fabricated ------------ Nothing Alien Tech Used ----------------- None Achievements -------------- None Challenges ------------ None RPGLIKE | -11 -10 -10 -10 -9 -8 -7 -6 -6 -6 -5 -5 -4 --------- Run | Yrd Mat Min Exi Min Mat Fac Fac Low Low Fac DSF Fac Levels Raised 16 | . . . . 1 3 2 5 1 . 2 1 1 XP Earned 27553 | 3000 195 500 200 1050 4679 3818 6756 1600 500 2190 1250 1815 XP Spent 25580 | . 2995 . . 1400 4550 3000 6535 2300 . 2600 1100 1100 Upgrades 41 | . 11 . . 4 8 6 8 1 . 1 1 1 Propulsion Slot 3 | . 1 . . . . 1 . . . . . 1 Utility Slot 8 | . . . . . 1 1 4 1 . 1 . . Weapon Slot 3 | . . . . . 3 . . . . . . . Core Integrity 2 | . . . . . . . 2 . . . . . Mass Support 3 | . . . . . 1 1 . . . . 1 . Inventory Capacity 1 | . . . . . 1 . . . . . . . Sight Range 1 | . . . . . . 1 . . . . . . Sensor Range 5 | . 2 . . . . 1 2 . . . . . Terrain Scan Density 3 | . 3 . . . . . . . . . . . Melee Accuracy 6 | . . . . 4 2 . . . . . . . Hack Attack % 3 | . 2 . . . . 1 . . . . . . Hack Defense % 3 | . 3 . . . . . . . . . . . Protomatter Created 1591 | . . . . 89 328 249 645 157 . 123 . . Integrity Restored 3695 | . 36 57 . 140 878 489 1267 459 . 369 . . Core 3369 | . 36 57 . 121 758 400 1169 459 . 369 . . Parts 326 | . . . . 19 120 89 98 . . . . . Protomatter Decayed 396 | . . . . 87 71 27 211 . . . . . Game ------ Seed BoreDisruptionStreamer Manual? 0 Play Time 01:28:39 Cumulative 159.9 hours Start 2024.08.05 @ 16:54:39 End 2024.08.05 @ 18:28:39 Sessions 1 Manual Loads 0 Difficulty Rogue Special Mode Winter2019/RPGLIKE Game No. 165 Rogue 165 Adventurer 0 Explorer 0 Win Type - Total 13 Types 11/0/0/1/0/0/1/0/0 Lore% 65 Gallery% 65 Achievement% 68 Wizard Run 0 Options --------- Layout 1 ASCII 0 Keyboard 0 Movement Numpad Keybinds 0 Fullscreen 1 Font 24/Smallcaps Map View 50x35 Zoom Use 0% Tactical HUD 1 Map Filters NONE Filters NONE Steam 1 RUN: 473daa83-ef2e-4599-8f70-947811841952